[Event "3rd CNE NED-ch Women Rapid 2017"]
[Site "Amstelveen"]
[Date "2017.12.03"]
[Round "4"]
[White "De Jong-Muhren, Bianca"]
[Black "Haast, Anne"]
[Result "0-1"]
[ECO "B47"]
[WhiteElo "2262"]
[BlackElo "2332"]
[Annotator "NA"]
[PlyCount "154"]
[EventDate "2017.??.??"]
[EventType "tourn"]
[EventCountry "NED"]
[SourceTitle "playchess.com"]
[Source "ChessBase"]
[SourceQuality "1"]
[TimeControl "900+10"]

1. e4 {[%emt 0:00:00]} c5 {[%emt 0:00:09]} 2. Nf3 {[%emt 0:00:00]} e6 {[%emt 0:00:01]} 3. d4 {[%emt 0:00:00]} cxd4 {[%emt 0:00:02]} 4. Nxd4 {[%emt 0:00:00]} Nc6 {[%emt 0:00:01]} 5. Nc3 {[%emt 0:00:00]} Qc7 {[%emt 0:00:01]} 6. Be2 {[%emt 0:00:35]} a6 {[%emt 0:00:02]} 7. O-O {[%emt 0:00:02]} Nf6 {[%emt 0:00:04]} 8. Be3 {[%emt 0:00:02]} Be7 {[%emt 0:00:06]} 9. f4 {[%emt 0:00:05]} d6 {[%emt 0:00:01]} 10. a4 {[%emt 0:00:01]} O-O {[%emt 0:00:10]} 11. Kh1 {[%emt 0:00:02]} Bd7 {[%emt 0:00:18]} 12. Nb3 {[%emt 0:00:02]} b6 {[%emt 0:00:34]} 13. Bf3 {[%emt 0:00:41]} Rab8 {[%emt 0:00:41]} 14. g4 {[%emt 0:00:16]} d5 {[%emt 0:01:15] B85: Sicilian Scheveningen: 6 Be2 a6, lines with early Be3} (14... Bc8 15. g5 Nd7 16. Bg2 Re8 17. Rf3 g6 18. Rh3 Bf8 19. Qe1 Bg7 20. Qh4 Nf8 21. f5 Bxc3 22. f6 h5 23. bxc3 e5 24. Rg3 Nd8 {1-0 (32) Vachier Lagrave,M (2758)-Movsesian,S (2658) Berlin 2015}) 15. e5 {[%emt 0:02:58]} Ne8 {[%emt 0:00:09]} 16. Nd4 {[%emt 0:01:24] [#]} Nxd4 $146 {[%emt 0:00:13]} ({Predecessor:} 16... Kh8 17. Nce2 f6 18. Nxc6 Bxc6 19. Nd4 Bd7 20. Bf2 fxe5 21. fxe5 {1-0 (56) Zapata,A (2556)-Ljubojevic,L (2557) Bled 2002}) 17. Bxd4 {[%emt 0:00:06]} Bc5 {[%emt 0:00:03]} 18. Bg2 {[%emt 0:01:13]} Bxd4 {[%emt 0:00:26]} 19. Qxd4 {[%emt 0:00:01]} Qc5 {[%emt 0:00:03]} 20. Qd2 {[%emt 0:02:47]} f6 {[%emt 0:00:04]} 21. Rae1 {[%emt 0:00:23]} fxe5 {[%emt 0:00:18]} 22. Rxe5 {[%emt 0:00:08]} Qc7 {[%emt 0:00:38]} 23. Qd4 {[%emt 0:02:01]} Qc4 {[%emt 0:03:17]} 24. Rxd5 {[%emt 0:00:50]} Qxd4 {[%emt 0:00:40]} 25. Rxd4 {[%emt 0:00:01]} Bc8 {[%emt 0:00:16]} 26. Re1 {[%emt 0:01:47]} b5 {[%emt 0:01:02]} 27. axb5 {[%emt 0:00:03]} axb5 {[%emt 0:00:00]} 28. b4 {[%emt 0:00:56]} Nc7 {[%emt 0:02:25]} 29. Re5 $18 {[%emt 0:00:22]} Ba6 {[%emt 0:00:37]} 30. Rc5 {[%emt 0:00:50]} Ne8 {[%emt 0:00:12]} 31. Rc6 {[%emt 0:00:12]} Bb7 {[%emt 0:00:12]} 32. Rxe6 {[%emt 0:00:06]} Bxg2+ {[%emt 0:00:01]} 33. Kxg2 {[%emt 0:00:01]} Rc8 {[%emt 0:00:06]} 34. Re3 {[%emt 0:00:12]} Nf6 {[%emt 0:00:01]} 35. Kf3 {[%emt 0:00:17]} Rc6 {[%emt 0:00:13]} 36. g5 {[%emt 0:00:08]} Nh5 {[%emt 0:00:09]} 37. Kg4 {[%emt 0:00:11]} g6 {[%emt 0:00:01]} 38. Red3 {[%emt 0:01:34]} Rcc8 {[%emt 0:00:06]} 39. Nd5 {[%emt 0:00:54]} Rxc2 {[%emt 0:00:07]} 40. Ne7+ {[%emt 0:00:15]} Kg7 {[%emt 0:00:02]} 41. f5 {[%emt 0:00:04]} Rg2+ {[%emt 0:00:12]} 42. Kh4 {[%emt 0:00:15]} Rxh2+ {[%emt 0:00:09]} 43. Kg4 {[%emt 0:00:04]} Rg2+ {[%emt 0:01:58]} 44. Kh4 {[%emt 0:00:00]} h6 {[%emt 0:00:15]} 45. Nxg6 {[%emt 0:00:19]} Rxf5 {[%emt 0:00:22]} 46. Kxh5 {[%emt 0:00:19]} Rfxg5+ {[%emt 0:00:13]} 47. Kh4 {[%emt 0:00:00]} Rh2+ {[%emt 0:00:26]} 48. Rh3 {[%emt 0:00:02]} Rxh3+ 49. Kxh3 {[%emt 0:00:01]} Kxg6 {[%emt 0:00:18]} 50. Rd6+ {[%emt 0:00:05]} Kg7 {[%emt 0:00:12]} 51. Rb6 {[%emt 0:00:41]} h5 {[%emt 0:00:14]} 52. Kh4 {[%emt 0:00:07]} Rd5 {[%emt 0:00:07]} 53. Ra6 {[%emt 0:00:16]} Kf7 {[%emt 0:00:05]} 54. Rh6 {[%emt 0:00:09]} Ke7 {[%emt 0:00:39]} 55. Kg3 {[%emt 0:00:02]} Rf5 {[%emt 0:00:07]} 56. Rc6 {[%emt 0:00:14]} Rg5+ {[%emt 0:00:27]} 57. Kf4 {[%emt 0:00:14]} Rg4+ {[%emt 0:00:03]} 58. Ke5 {[%emt 0:00:00]} Rxb4 {[%emt 0:00:07]} 59. Rc7+ {[%emt 0:00:02]} Kd8 {[%emt 0:00:05]} 60. Rh7 {[%emt 0:00:04]} h4 {[%emt 0:00:47]} 61. Kd6 Ke8 62. Kc5 {[%emt 0:00:04]} Rg4 {[%emt 0:00:07]} 63. Kxb5 {[%emt 0:00:05]} Kf8 {[%emt 0:00:04]} 64. Kc5 {[%emt 0:00:03]} Kg8 {[%emt 0:00:01]} 65. Rh5 {[%emt 0:00:05]} Kg7 {[%emt 0:00:04]} 66. Kd5 {[%emt 0:00:02]} Ra4 {[%emt 0:00:28]} 67. Rg5+ {[%emt 0:00:53]} Kf6 {[%emt 0:00:05]} 68. Rg8 {[%emt 0:00:02]} Kf5 {[%emt 0:00:07]} 69. Rf8+ {[%emt 0:00:13]} Kg4 {[%emt 0:00:03]} 70. Rg8+ {[%emt 0:00:06]} Kf3 {[%emt 0:00:08]} 71. Rf8+ {[%emt 0:00:14]} Kg3 {[%emt 0:00:04]} 72. Ke5 {[%emt 0:00:19]} h3 {[%emt 0:00:11]} 73. Rb8 {[%emt 0:00:25]} h2 {[%emt 0:00:21]} 74. Rb3+ {[%emt 0:00:09]} Kh4 {[%emt 0:00:16]} 75. Rb1 {[%emt 0:00:15]} Rg4 {[%emt 0:00:06]} 76. Rh1 {[%emt 0:00:08]} Kh3 {[%emt 0:00:05]} 77. Kf5 {[%emt 0:00:01]} Rg1 {[%emt 0:00:04]} 0-1

[Event "3rd CNE NED-ch Women Rapid 2017"]
[Site "Amstelveen"]
[Date "2017.12.03"]
[Round "4"]
[White "De Mie, Mariska"]
[Black "Ratsma, Rosa"]
[Result "1-0"]
[ECO "B90"]
[WhiteElo "2242"]
[BlackElo "2295"]
[Annotator "NA"]
[PlyCount "89"]
[EventDate "2017.??.??"]
[EventType "tourn"]
[EventCountry "NED"]
[SourceTitle "playchess.com"]
[Source "ChessBase"]
[SourceQuality "1"]
[TimeControl "900+10"]

1. e4 {[%emt 0:00:00]} c5 {[%emt 0:00:11]} 2. Nf3 {[%emt 0:00:00]} d6 {[%emt 0:00:00]} 3. d4 {[%emt 0:00:00]} cxd4 {[%emt 0:00:00]} 4. Nxd4 {[%emt 0:00:00]} Nf6 {[%emt 0:00:00]} 5. Nc3 {[%emt 0:00:00]} a6 {[%emt 0:00:00]} 6. Be3 {[%emt 0:00:07]} e5 {[%emt 0:00:07]} 7. Nf3 {[%emt 0:00:03]} Qc7 {[%emt 0:00:10]} 8. Bg5 {[%emt 0:00:21]} Nbd7 {[%emt 0:02:02] B90: Sizilianisch (Najdorf-Variante, Abweichungen)} 9. a4 {[%emt 0:00:02]} Be7 {[%emt 0:00:28]} (9... h6 10. Bh4 g5 11. Bg3 Nc5 12. Nd2 Be6 13. Be2 O-O-O 14. O-O h5 15. h4 Bh6 16. Ra3 {1-0 (54) Topalov,V (2735)-Karjakin,S (2562) Benidorm 2003}) 10. Nd2 {[%emt 0:01:06]} h6 {[%emt 0:00:21]} 11. Bxf6 {[%emt 0:01:35]} Nxf6 {[%emt 0:00:08]} 12. Nc4 $146 {[%emt 0:00:14]} ({Vorgänger:} 12. Bc4 Be6 13. Qe2 Rc8 14. Bb3 O-O 15. O-O Rfd8 16. Qd3 Bxb3 17. Nxb3 {1-0 (48) Timofeev,A (2521)-Naiditsch,A (2524) Oropesa del Mar 2001}) 12... Be6 {[%emt 0:00:38]} 13. Ne3 {[%emt 0:00:13]} O-O {[%emt 0:00:52]} 14. Bd3 {[%emt 0:01:01]} Qc5 {[%emt 0:01:31]} 15. O-O {[%emt 0:00:34]} Bd8 {[%emt 0:01:19]} 16. Qf3 {[%emt 0:01:51]} Ba5 {[%emt 0:00:49]} 17. Ncd5 {[%emt 0:01:11]} Bxd5 {[%emt 0:01:24]} 18. Nxd5 {[%emt 0:01:18]} Nxd5 {[%emt 0:01:16]} 19. exd5 {[%emt 0:00:01]} g6 {[%emt 0:00:22]} 20. g4 {[%emt 0:02:00]} Bd8 {[%emt 0:01:03]} 21. Kh1 $15 {[%emt 0:01:58]} Bg5 {[%emt 0:00:40]} 22. Ra3 {[%emt 0:01:07]} Qd4 {[%emt 0:01:22]} 23. Rb3 {[%emt 0:01:27]} Qxa4 {[%emt 0:00:54]} 24. Rxb7 {[%emt 0:00:03]} Rab8 {[%emt 0:00:11]} 25. b3 {[%emt 0:00:16]} Qd4 {[%emt 0:01:05]} 26. Bxa6 {[%emt 0:00:37]} e4 {[%emt 0:00:56]} 27. Qd1 {[%emt 0:00:06]} Qe5 {[%emt 0:00:09]} 28. Rxb8 {[%emt 0:00:39]} Rxb8 {[%emt 0:00:01]} 29. Bc4 {[%emt 0:00:50]} Bf4 {[%emt 0:00:17]} 30. Qe2 {[%emt 0:00:09]} Re8 {[%emt 0:00:31]} 31. f3 {[%emt 0:00:14]} e3 {[%emt 0:00:17]} 32. Rd1 {[%emt 0:00:30]} Ra8 {[%emt 0:00:12]} 33. b4 {[%emt 0:00:08]} Qb2 {[%emt 0:00:31]} 34. b5 {[%emt 0:00:08]} Rc8 {[%emt 0:00:19]} 35. Bb3 {[%emt 0:00:19]} Rc5 {[%emt 0:00:10]} 36. b6 {[%emt 0:00:06]} Qc3 {[%emt 0:00:18]} 37. b7 {[%emt 0:00:18]} Qb4 {[%emt 0:00:04]} 38. Rd4 {[%emt 0:00:19]} Qxd4 {[%emt 0:00:21]} 39. b8=Q+ {[%emt 0:00:02]} Kg7 {[%emt 0:00:01]} 40. Qa7 {[%emt 0:00:23]} Qb2 {[%emt 0:00:13]} 41. Qa4 {[%emt 0:00:15]} Qc1+ {[%emt 0:00:17]} 42. Kg2 {[%emt 0:00:01]} Bg5 {[%emt 0:00:15]} 43. Qd4+ {[%emt 0:00:02]} Kh7 {[%emt 0:00:12]} 44. f4 {[%emt 0:00:03]} Bh4 {[%emt 0:00:18]} 45. Qdxe3 {[%emt 0:00:02]} 1-0

[Event "3rd CNE NED-ch Women Rapid 2017"]
[Site "Amstelveen"]
[Date "2017.12.03"]
[Round "5"]
[White "Haast, Anne"]
[Black "Paulet, Iozefina"]
[Result "1-0"]
[ECO "C03"]
[WhiteElo "2332"]
[BlackElo "2272"]
[Annotator "NA"]
[PlyCount "77"]
[EventDate "2017.??.??"]
[EventType "tourn"]
[EventCountry "NED"]
[SourceTitle "playchess.com"]
[Source "ChessBase"]
[SourceQuality "1"]
[TimeControl "900+10"]

1. e4 {[%emt 0:00:00]} e6 {[%emt 0:00:01]} 2. d4 {[%emt 0:00:00]} d5 {[%emt 0:00:01]} 3. Nd2 {[%emt 0:00:00]} a6 {[%emt 0:00:01]} 4. c3 {[%emt 0:00:26]} c5 {[%emt 0:00:08]} 5. exd5 {[%emt 0:00:14]} cxd4 {[%emt 0:00:20]} 6. cxd4 {[%emt 0:00:09]} exd5 {[%emt 0:00:03]} 7. Bd3 {[%emt 0:00:09]} Nc6 {[%emt 0:00:03]} 8. Ne2 {[%emt 0:00:05]} Nf6 {[%emt 0:00:23]} 9. O-O {[%emt 0:00:03]} Bd6 {[%emt 0:00:01]} 10. Ng3 {[%emt 0:01:01]} Bxg3 {[%emt 0:02:18]} 11. Re1+ {[%emt 0:00:26]} Be6 {[%emt 0:00:12]} 12. hxg3 {[%emt 0:00:06]} Nxd4 {[%emt 0:00:20]} 13. Qa4+ {[%emt 0:00:19]} Nc6 {[%emt 0:00:01]} 14. Nf3 {[%emt 0:00:20]} Qa5 {[%emt 0:00:40]} 15. Qh4 {[%emt 0:01:21]} Qb4 {[%emt 0:00:10]} 16. Bf4 {[%emt 0:00:49]} Nd4 {[%emt 0:04:24]} 17. Ng5 {[%emt 0:00:49]} Kd7 {[%emt 0:04:46]} 18. a3 {[%emt 0:02:19]} Qe7 {[%emt 0:00:01]} 19. Bd2 {[%emt 0:01:25]} Nc6 {[%emt 0:00:08]} 20. b4 {[%emt 0:00:33]} h6 {[%emt 0:01:13]} 21. Nxe6 {[%emt 0:00:20]} fxe6 {[%emt 0:00:02]} 22. b5 {[%emt 0:00:11]} axb5 {[%emt 0:00:07]} 23. Bxb5 {[%emt 0:00:07]} Ne4 {[%emt 0:00:11]} 24. Rxe4 {[%emt 0:00:08]} dxe4 {[%emt 0:00:01]} 25. Qxe4 {[%emt 0:00:02]} Qc5 {[%emt 0:00:54]} 26. a4 {[%emt 0:00:37]} Qd5 {[%emt 0:02:41]} 27. Qe1 {[%emt 0:00:12]} Kc8 {[%emt 0:00:07]} 28. Be3 {[%emt 0:00:27]} Rd8 {[%emt 0:00:01]} 29. Rc1 {[%emt 0:00:15]} Kb8 {[%emt 0:00:14]} 30. Qc3 {[%emt 0:01:25]} e5 {[%emt 0:00:03]} 31. Bb6 {[%emt 0:01:04]} Rd7 {[%emt 0:00:05]} 32. Qe3 {[%emt 0:02:03]} Qd2 {[%emt 0:00:21]} 33. Qc5 {[%emt 0:00:14]} Qd6 {[%emt 0:00:10]} 34. Qc3 {[%emt 0:00:23]} Rf7 {[%emt 0:00:12]} 35. Qc4 {[%emt 0:00:26]} Rf8 {[%emt 0:00:08]} 36. Bc5 {[%emt 0:00:04]} Qd8 {[%emt 0:00:26]} 37. Bxf8 {[%emt 0:00:03]} Qxf8 {[%emt 0:00:01]} 38. Bxc6 {[%emt 0:00:04]} bxc6 {[%emt 0:00:01]} 39. Qxc6 {[%emt 0:00:07]} 1-0

[Event "3rd CNE NED-ch Women Rapid 2017"]
[Site "Amstelveen"]
[Date "2017.12.03"]
[Round "5"]
[White "Ratsma, Rosa"]
[Black "Lanchava, Tea"]
[Result "1-0"]
[ECO "B10"]
[WhiteElo "2295"]
[BlackElo "2297"]
[Annotator "NA"]
[PlyCount "41"]
[EventDate "2017.??.??"]
[EventType "tourn"]
[EventCountry "NED"]
[SourceTitle "playchess.com"]
[Source "ChessBase"]
[SourceQuality "1"]
[TimeControl "900+10"]

1. e4 {[%emt 0:00:00]} c6 {[%emt 0:00:03]} 2. Nc3 {[%emt 0:00:00]} g6 {[%emt 0:00:03]} 3. d4 {[%emt 0:00:16]} Bg7 {[%emt 0:00:03]} 4. Bc4 {[%emt 0:00:09]} e6 {[%emt 0:00:12]} 5. e5 {[%emt 0:01:30]} b5 {[%emt 0:00:24]} 6. Bb3 {[%emt 0:00:40]} f5 {[%emt 0:00:47]} 7. Nf3 {[%emt 0:00:26]} Nh6 {[%emt 0:00:38]} 8. h4 {[%emt 0:01:12]} Nf7 {[%emt 0:01:03]} 9. Ng5 {[%emt 0:00:46]} O-O {[%emt 0:02:15]} 10. Bf4 {[%emt 0:01:23]} Qb6 11. a4 {[%emt 0:01:37]} b4 {[%emt 0:01:21]} 12. a5 {[%emt 0:00:38]} Qc7 {[%emt 0:00:30]} 13. Na4 {[%emt 0:00:51]} h6 {[%emt 0:02:11]} 14. Nxf7 {[%emt 0:00:15]} Rxf7 {[%emt 0:00:01]} 15. Qd2 {[%emt 0:00:43]} Qxa5 {[%emt 0:01:20]} 16. Bxh6 {[%emt 0:00:06]} Bxe5 {[%emt 0:04:41]} 17. dxe5 {[%emt 0:00:06]} Qxe5+ {[%emt 0:00:01]} 18. Qe3 {[%emt 0:00:25]} Qb5 {[%emt 0:01:40]} 19. Nb6 {[%emt 0:02:46]} f4 20. Qd3 {[%emt 0:00:03]} Rf5 {[%emt 0:00:59]} 21. Qxb5 {[%emt 0:00:06]} 1-0

[Event "3rd CNE NED-ch Women Rapid 2017"]
[Site "Amstelveen"]
[Date "2017.12.03"]
[Round "5"]
[White "Keetman, Maaike"]
[Black "De Mie, Mariska"]
[Result "0-1"]
[ECO "B42"]
[WhiteElo "2203"]
[BlackElo "2242"]
[Annotator "NA"]
[PlyCount "66"]
[EventDate "2017.??.??"]
[EventType "tourn"]
[EventCountry "NED"]
[SourceTitle "playchess.com"]
[Source "ChessBase"]
[SourceQuality "1"]
[TimeControl "900+10"]

1. e4 {[%emt 0:00:00]} c5 {[%emt 0:00:24]} 2. Nf3 {[%emt 0:00:00]} e6 {[%emt 0:00:01]} 3. d4 {[%emt 0:00:00]} cxd4 {[%emt 0:00:02]} 4. Nxd4 {[%emt 0:00:00]} a6 {[%emt 0:00:00]} 5. Bd3 {[%emt 0:00:00]} Nf6 {[%emt 0:00:05]} 6. O-O {[%emt 0:00:02]} e5 {[%emt 0:00:18]} 7. Nf3 {[%emt 0:00:59]} d6 {[%emt 0:00:12]} 8. Bg5 {[%emt 0:00:35]} Be7 {[%emt 0:00:08]} 9. Nc3 {[%emt 0:00:55]} Be6 {[%emt 0:00:04]} 10. Qe2 {[%emt 0:00:17]} Nbd7 {[%emt 0:00:22]} 11. Bc4 {[%emt 0:02:14]} O-O {[%emt 0:01:13]} 12. Rfd1 {[%emt 0:00:49]} Rc8 {[%emt 0:00:39]} 13. Bb3 {[%emt 0:00:50]} Qc7 {[%emt 0:00:59]} 14. Rd2 {[%emt 0:00:41]} b5 {[%emt 0:01:10]} 15. Rad1 {[%emt 0:01:30]} Bc4 {[%emt 0:00:23]} 16. Bxc4 {[%emt 0:01:32]} Qxc4 {[%emt 0:00:01]} 17. Nd5 {[%emt 0:03:24]} Nxd5 {[%emt 0:00:13]} 18. Qxc4 {[%emt 0:00:56]} Rxc4 {[%emt 0:00:02]} 19. Rxd5 {[%emt 0:00:25]} f6 {[%emt 0:00:05]} 20. Bd2 {[%emt 0:00:26]} Rxe4 {[%emt 0:01:30]} 21. Ba5 {[%emt 0:00:04]} Rc8 {[%emt 0:00:24]} 22. c3 {[%emt 0:00:02]} Ra4 {[%emt 0:00:50]} 23. Bb4 {[%emt 0:00:10]} Nb6 {[%emt 0:01:20]} 24. R5d2 {[%emt 0:00:49]} Nc4 {[%emt 0:00:08]} 25. b3 {[%emt 0:00:50]} Nxd2 {[%emt 0:00:05]} 26. bxa4 {[%emt 0:00:08]} Nxf3+ {[%emt 0:00:13]} 27. gxf3 {[%emt 0:00:01]} bxa4 {[%emt 0:00:01]} 28. Rd5 {[%emt 0:00:06]} Kf7 {[%emt 0:00:30]} 29. Kf1 {[%emt 0:00:13]} Ke6 {[%emt 0:00:21]} 30. Ra5 {[%emt 0:00:02]} Rc6 {[%emt 0:00:22]} 31. Ke2 {[%emt 0:00:10]} Bd8 {[%emt 0:00:22]} 32. Rxa4 {[%emt 0:00:03]} a5 {[%emt 0:00:02]} 33. Bxa5 {[%emt 0:00:09]} Ra6 0-1

[Event "3rd CNE NED-ch Women Rapid 2017"]
[Site "Amstelveen"]
[Date "2017.12.03"]
[Round "5"]
[White "Kazarian, Anna-Maja"]
[Black "De Jong-Muhren, Bianca"]
[Result "0-1"]
[ECO "B44"]
[WhiteElo "2162"]
[BlackElo "2262"]
[Annotator "NA"]
[PlyCount "88"]
[EventDate "2017.??.??"]
[EventType "tourn"]
[EventCountry "NED"]
[SourceTitle "playchess.com"]
[Source "ChessBase"]
[SourceQuality "1"]
[TimeControl "900+10"]

1. e4 {[%emt 0:00:00]} c5 {[%emt 0:00:01]} 2. Nf3 {[%emt 0:00:00]} e6 {[%emt 0:00:01]} 3. d4 {[%emt 0:00:00]} cxd4 {[%emt 0:00:01]} 4. Nxd4 {[%emt 0:00:00]} Nc6 {[%emt 0:00:01]} 5. Nb5 {[%emt 0:00:35]} d6 {[%emt 0:00:21]} 6. c4 {[%emt 0:00:02]} a6 {[%emt 0:00:18]} 7. N5c3 {[%emt 0:00:02]} Nf6 {[%emt 0:00:12]} 8. Be3 {[%emt 0:00:33]} b6 {[%emt 0:00:33]} 9. Nd2 {[%emt 0:00:16]} Ne5 {[%emt 0:00:41]} 10. Be2 {[%emt 0:00:06]} Bb7 {[%emt 0:00:25]} 11. f4 {[%emt 0:00:07]} Ned7 {[%emt 0:00:05]} 12. O-O {[%emt 0:00:04]} Be7 {[%emt 0:00:16]} 13. Bf3 {[%emt 0:00:18]} Qc7 {[%emt 0:00:03]} 14. Qe2 {[%emt 0:00:42]} Rc8 {[%emt 0:00:11]} 15. g4 {[%emt 0:00:39]} O-O {[%emt 0:01:27]} 16. g5 {[%emt 0:00:22]} Ne8 {[%emt 0:00:03]} 17. Bg4 {[%emt 0:01:01]} Qd8 {[%emt 0:05:13]} 18. Qg2 {[%emt 0:02:36]} Nc7 {[%emt 0:00:51]} 19. Qh3 {[%emt 0:00:29]} Re8 {[%emt 0:01:47]} 20. Nd5 {[%emt 0:02:10]} exd5 {[%emt 0:02:01]} 21. Bxd7 {[%emt 0:00:02]} dxe4 {[%emt 0:00:08]} 22. Bxb6 {[%emt 0:01:10]} Bf8 {[%emt 0:02:19]} 23. Bxe8 {[%emt 0:00:28]} Qxe8 {[%emt 0:00:03]} 24. Qe3 {[%emt 0:00:41]} d5 {[%emt 0:00:07]} 25. b3 {[%emt 0:02:33]} Qc6 {[%emt 0:01:18]} 26. Rac1 {[%emt 0:00:42]} Na8 {[%emt 0:00:48]} 27. Bd4 {[%emt 0:00:12]} Rd8 {[%emt 0:00:04]} 28. Rfe1 {[%emt 0:00:42]} Ba3 {[%emt 0:00:09]} 29. Rc2 {[%emt 0:00:35]} Nc7 {[%emt 0:00:09]} 30. Nb1 {[%emt 0:01:55]} Bd6 {[%emt 0:00:07]} 31. f5 {[%emt 0:00:44]} Nb5 {[%emt 0:00:08]} 32. Kh1 {[%emt 0:00:19]} Nxd4 {[%emt 0:00:09]} 33. Qxd4 {[%emt 0:00:02]} Be7 {[%emt 0:00:24]} 34. f6 {[%emt 0:00:21]} gxf6 {[%emt 0:00:07]} 35. gxf6 {[%emt 0:00:01]} Bxf6 {[%emt 0:00:03]} 36. Rg2+ {[%emt 0:00:01]} Kh8 {[%emt 0:00:00]} 37. cxd5 {[%emt 0:00:16]} Bxd4 {[%emt 0:00:13]} 38. dxc6 {[%emt 0:00:01]} Bxc6 39. Na3 {[%emt 0:00:15]} e3 {[%emt 0:00:04]} 40. Nc2 {[%emt 0:00:05]} Bc3 {[%emt 0:00:32]} 41. Rc1 {[%emt 0:00:32]} e2 {[%emt 0:00:04]} 42. Ne1 {[%emt 0:00:10]} Rd1 {[%emt 0:00:22]} 43. Kg1 {[%emt 0:00:07]} Rxc1 {[%emt 0:00:01]} 44. Rxe2 {[%emt 0:00:03]} Rxe1+ {[%emt 0:00:01]} 0-1

[Event "3rd CNE NED-ch Women Rapid 2017"]
[Site "Amstelveen"]
[Date "2017.12.03"]
[Round "6"]
[White "Haast, Anne"]
[Black "Kazarian, Anna-Maja"]
[Result "1/2-1/2"]
[ECO "C06"]
[WhiteElo "2332"]
[BlackElo "2162"]
[Annotator "NA"]
[PlyCount "120"]
[EventDate "2017.??.??"]
[EventType "tourn"]
[EventCountry "NED"]
[SourceTitle "playchess.com"]
[Source "ChessBase"]
[SourceQuality "1"]
[TimeControl "900+10"]

1. e4 {[%emt 0:00:00]} e6 {[%emt 0:00:00]} 2. d4 {[%emt 0:00:00]} d5 {[%emt 0:00:01]} 3. Nd2 {[%emt 0:00:00]} Nf6 {[%emt 0:00:17]} 4. e5 {[%emt 0:00:00]} Nfd7 {[%emt 0:00:01]} 5. Bd3 {[%emt 0:00:00]} c5 {[%emt 0:00:02]} 6. c3 {[%emt 0:00:01]} Nc6 {[%emt 0:00:01]} 7. Ne2 {[%emt 0:00:02]} cxd4 {[%emt 0:00:22]} 8. cxd4 {[%emt 0:00:01]} Qb6 {[%emt 0:00:01]} 9. Nf3 {[%emt 0:00:02]} f6 {[%emt 0:00:04]} 10. exf6 {[%emt 0:00:03]} Nxf6 {[%emt 0:00:01]} 11. O-O {[%emt 0:00:11]} Bd6 {[%emt 0:00:09]} 12. Bf4 {[%emt 0:00:19]} Bxf4 {[%emt 0:00:12]} 13. Nxf4 {[%emt 0:00:01]} O-O {[%emt 0:00:03]} 14. Re1 {[%emt 0:01:08]} Ne4 {[%emt 0:00:48]} 15. Nh3 {[%emt 0:02:52]} e5 {[%emt 0:01:00]} 16. Bxe4 {[%emt 0:01:03]} dxe4 {[%emt 0:00:08]} 17. Nfg5 {[%emt 0:00:10]} h6 {[%emt 0:01:22]} 18. dxe5 {[%emt 0:03:15]} hxg5 {[%emt 0:00:34]} 19. Qd5+ {[%emt 0:00:01]} Kh8 {[%emt 0:00:06]} 20. e6 {[%emt 0:00:01]} Qxb2 {[%emt 0:02:12]} 21. Qxe4 {[%emt 0:01:04]} Qf6 {[%emt 0:02:57]} 22. Qe3 {[%emt 0:01:10]} Bxe6 {[%emt 0:05:22]} 23. Qxe6 {[%emt 0:00:06]} Qxe6 {[%emt 0:01:00]} 24. Rxe6 {[%emt 0:00:04]} g4 {[%emt 0:01:25]} 25. Ng5 {[%emt 0:00:06]} Rf5 {[%emt 0:00:02]} 26. h4 {[%emt 0:01:43]} Raf8 {[%emt 0:00:52]} 27. Re2 {[%emt 0:00:03]} a5 {[%emt 0:00:10]} 28. Rc1 {[%emt 0:00:30]} a4 {[%emt 0:00:25]} 29. Rc4 {[%emt 0:00:24]} g3 {[%emt 0:00:07]} 30. fxg3 {[%emt 0:00:21]} a3 {[%emt 0:00:01]} 31. Nf3 {[%emt 0:00:28]} Rb5 {[%emt 0:00:09]} 32. Ra4 {[%emt 0:00:25]} Rb2 {[%emt 0:00:05]} 33. Re3 {[%emt 0:00:18]} Rxa2 {[%emt 0:00:12]} 34. Rexa3 {[%emt 0:00:02]} Rxa3 {[%emt 0:00:09]} 35. Rxa3 {[%emt 0:00:01]} b5 {[%emt 0:00:15]} 36. Ra6 {[%emt 0:00:01]} Rc8 {[%emt 0:00:10]} 37. Rb6 {[%emt 0:00:08]} b4 {[%emt 0:00:01]} 38. g4 {[%emt 0:00:15]} Kg8 {[%emt 0:00:09]} 39. Kf2 {[%emt 0:00:02]} Kf8 {[%emt 0:00:05]} 40. Rb7 {[%emt 0:00:19]} Rb8 {[%emt 0:00:31]} 41. Rxb8+ {[%emt 0:00:28]} Nxb8 {[%emt 0:00:01]} 42. Ke3 {[%emt 0:00:08]} Ke7 {[%emt 0:00:10]} 43. Kd3 {[%emt 0:00:02]} Ke6 {[%emt 0:00:22]} 44. Nd4+ {[%emt 0:01:11]} Ke5 {[%emt 0:00:06]} 45. Ke3 {[%emt 0:00:01]} Kd5 {[%emt 0:00:09]} 46. h5 {[%emt 0:00:35]} Nd7 {[%emt 0:00:09]} 47. g5 {[%emt 0:01:18]} Ne5 {[%emt 0:00:03]} 48. Nf3 {[%emt 0:00:17]} b3 {[%emt 0:00:24]} 49. Kd2 {[%emt 0:00:03]} Ng4 {[%emt 0:00:07]} 50. Kc3 {[%emt 0:00:20]} Ke6 {[%emt 0:00:02]} 51. Nh4 {[%emt 0:00:41]} Ke5 {[%emt 0:00:17]} 52. g3 {[%emt 0:00:01]} Nf2 {[%emt 0:00:12]} 53. Kxb3 {[%emt 0:00:28]} Ne4 {[%emt 0:00:07]} 54. g6 {[%emt 0:00:18]} Kf6 {[%emt 0:00:03]} 55. g4 {[%emt 0:00:13]} Nf2 {[%emt 0:00:05]} 56. Kc4 {[%emt 0:00:58]} Nxg4 {[%emt 0:00:01]} 57. Kd5 {[%emt 0:00:02]} Kg5 {[%emt 0:00:13]} 58. Ke6 {[%emt 0:00:19]} Kxh4 {[%emt 0:00:28]} 59. Kf7 {[%emt 0:00:01]} Kxh5 {[%emt 0:00:01]} 60. Kxg7 {[%emt 0:00:01]} Ne5 {[%emt 0:00:02]} 1/2-1/2